bitfinex/quotes_BTCUSD_20241226
["timestamp","ask_amount","ask_price","bid_price","bid_amount"]
[1735215979614,0.208446,95948.0,95933.0,0.003]
[1735215979823,0.31243232,95948.0,95933.0,0.003]
[1735215980268,0.0615914,95949.0,95933.0,0.003]
[1735215980504,0.0615914,95949.0,95934.0,0.208476]
[1735215981156,0.0615914,95949.0,95948.0,0.002]
[1735215981383,0.00178064,95949.0,95948.0,0.18798632]
[1735215981590,0.00178064,95949.0,95948.0,0.21802828]
[1735215981797,0.00178064,95949.0,95948.0,0.21698632]
[1735215981981,0.00178064,95949.0,95948.0,0.18598632]
[1735215982183,0.00178064,95949.0,95948.0,0.28344812]
[1735215982432,0.00178064,95949.0,95948.0,0.28240612]
[1735215982639,0.00178064,95949.0,95948.0,0.28940612]
[1735215982828,0.00178064,95949.0,95948.0,0.29840612]
[1735215983819,0.00178064,95949.0,95948.0,0.64321059]
[1735215984793,0.00178064,95949.0,95948.0,0.56118126]
[1735215985029,0.00178064,95949.0,95948.0,0.55918126]
[1735215985255,0.00178064,95949.0,95948.0,0.56818126]
[1735215986244,0.00178064,95949.0,95948.0,0.7312544]
[1735215987301,0.00178064,95949.0,95948.0,0.24637679]
[1735215987567,0.00178064,95949.0,95948.0,0.23937679]
[1735215987802,0.00178064,95949.0,95948.0,0.24637679]
[1735215988351,0.00178064,95949.0,95948.0,0.39637679]
[1735215989140,0.00178064,95949.0,95948.0,0.38737679]
[1735215989318,0.00178064,95949.0,95948.0,0.86504636]
[1735215989524,0.00178064,95949.0,95948.0,0.97404636]
[1735215989976,0.00178064,95949.0,95948.0,0.96504636]
[1735215990172,0.00178064,95949.0,95948.0,0.86504636]
[1735215990349,0.00178064,95949.0,95948.0,0.87404636]
[1735215990551,0.00178064,95949.0,95948.0,0.73397322]
[1735215990773,7e-05,95962.0,95958.0,0.208424]
[1735215990979,0.00024099,95959.0,95958.0,0.31241032]
[1735215991652,0.00024099,95959.0,95958.0,0.44181032]
[1735215991803,0.00024099,95959.0,95958.0,0.44681032]
[1735215992188,0.00024099,95959.0,95958.0,0.45581032]
[1735215992813,0.00024099,95959.0,95958.0,0.52223415]
[1735215993215,0.00024099,95959.0,95958.0,1.00681955]
[1735215993596,0.0002,95969.0,95968.0,0.208402]
[1735215993803,0.00071854,95969.0,95968.0,0.208402]
[1735215994659,0.00071854,95969.0,95968.0,0.211402]
[1735215995197,0.00071854,95969.0,95968.0,0.25035523]
[1735215995397,0.00071854,95969.0,95968.0,0.220402]
[1735215996253,0.00071854,95969.0,95968.0,0.34738832]
[1735215996831,0.00071854,95969.0,95968.0,0.42728832]
[1735215997034,0.00071854,95969.0,95968.0,0.42428832]
[1735215997230,0.00071854,95969.0,95968.0,0.48755775]
[1735215997437,0.00071854,95969.0,95968.0,0.47101632]
[1735215997846,0.00071854,95969.0,95968.0,0.45701632]
[1735215998038,0.00071854,95969.0,95968.0,0.43401632]
[1735215998244,0.00071854,95969.0,95968.0,0.45001632]
[1735215998495,0.00071854,95969.0,95968.0,0.44101632]
[1735215998694,0.00071854,95969.0,95968.0,0.43401632]
[1735215998900,0.00071854,95969.0,95968.0,0.45001632]
[1735215999573,0.00071854,95969.0,95968.0,0.44101632]
[1735215999773,0.00071854,95969.0,95968.0,0.45001632]
[1735216000300,0.00071854,95969.0,95968.0,0.44301632]
[1735216000477,0.00071854,95969.0,95968.0,0.45001632]
[1735216001132,0.00071854,95969.0,95968.0,0.44301632]
[1735216001318,0.00071854,95969.0,95968.0,0.44101632]
[1735216001486,0.00071854,95969.0,95968.0,0.45001632]
[1735216002147,0.00071854,95969.0,95968.0,0.45201632]
[1735216002321,0.00071854,95969.0,95968.0,0.44301632]
[1735216002696,0.00080404,95969.0,95968.0,0.45201632]
[1735216003344,0.00080404,95969.0,95968.0,0.26813]
[1735216003504,0.00080404,95969.0,95968.0,0.226402]
[1735216003700,0.00080404,95969.0,95968.0,0.233402]
[1735216003924,0.00080404,95969.0,95968.0,0.275134]
[1735216004163,0.00080404,95969.0,95968.0,0.268134]
[1735216004518,0.00080404,95969.0,95968.0,0.275134]
[1735216005078,0.00080404,95969.0,95968.0,0.257134]
[1735216005579,0.00080404,95969.0,95968.0,0.37012032]
[1735216005797,0.00080404,95969.0,95968.0,0.4210289]
[1735216006196,0.00080404,95969.0,95968.0,0.4300289]
[1735216006395,0.00080404,95969.0,95968.0,0.257134]
[1735216006534,0.00080404,95969.0,95968.0,0.208402]
[1735216006736,0.00080404,95969.0,95968.0,0.217402]
[1735216006936,0.00080404,95969.0,95968.0,0.016]
[1735216007180,0.00080404,95969.0,95968.0,0.007]
[1735216007379,0.00080404,95969.0,95966.0,0.22896549]
[1735216007580,0.00080404,95969.0,95968.0,0.007]
[1735216008192,0.00080404,95969.0,95955.0,0.416859]
[1735216008422,0.00080404,95969.0,95950.0,0.09329646]
[1735216008423,0.00080404,95969.0,95968.0,0.007]
[1735216008614,1.01969416,95969.0,95968.0,0.007]
[1735216008824,0.50797016,95969.0,95968.0,0.007]
[1735216008982,0.65230215,95969.0,95968.0,0.016]
[1735216009178,0.58800215,95969.0,95968.0,0.007]
[1735216009649,0.09287683,95959.0,95948.0,0.000171]
[1735216009848,0.208428,95956.0,95955.0,0.003]
[1735216010045,0.31241432,95956.0,95955.0,0.003]
[1735216010247,0.10398632,95956.0,95955.0,0.003]
[1735216010471,0.10398632,95956.0,95948.0,0.000171]
[1735216010680,0.262,95961.0,95949.0,0.416887]
[1735216010882,0.24183152,95962.0,95949.0,0.06416372]
[1735216011084,0.208394,95972.0,95948.0,0.009171]
[1735216011085,0.208391,95974.0,95954.0,0.208433]
[1735216011279,0.09287683,95985.0,95963.0,0.208413]
[1735216011280,0.15,95973.0,95963.0,0.208413]
[1735216011857,0.15,95973.0,95958.0,0.208423]
[1735216011858,0.358392,95973.0,95958.0,0.208423]
[1735216012060,0.358392,95973.0,95956.0,0.208428]
[1735216012693,0.67077032,95973.0,95954.0,0.20895054]
[1735216012922,0.208405,95967.0,95958.0,0.002]
[1735216013615,0.049,95966.0,95958.0,0.002]
[1735216015041,0.049,95966.0,95958.0,0.002171]
[1735216015242,0.049,95966.0,95958.0,0.000171]
[1735216015795,0.049,95966.0,95958.0,0.002171]
[1735216015978,0.002,95967.0,95958.0,0.002171]
[1735216016193,0.002,95967.0,95959.0,0.22953415]
[1735216016753,8.55e-05,95969.0,95959.0,0.43795615]
[1735216017170,8.55e-05,95969.0,95959.0,0.208422]
[1735216018301,8.55e-05,95969.0,95959.0,0.211422]
[1735216019117,8.55e-05,95969.0,95958.0,0.000171]
[1735216019291,0.208413,95963.0,95958.0,0.000171]
[1735216019502,0.208413,95963.0,95959.0,0.004]
[1735216020009,0.208413,95963.0,95959.0,0.008]
[1735216020213,0.208404,95967.0,95958.0,0.000171]
[1735216020629,0.10398632,95968.0,95958.0,0.000171]
[1735216020927,0.208415,95963.0,95958.0,0.000171]
[1735216021100,0.208418,95961.0,95958.0,0.000171]
[1735216022122,0.208422,95959.0,95958.0,0.000171]
[1735216022338,0.77298032,95959.0,95958.0,0.002171]
[1735216022538,0.87696664,95959.0,95958.0,0.000171]
[1735216022812,0.90539564,95959.0,95958.0,0.003171]
[1735216023136,0.90539564,95959.0,95958.0,0.000171]
[1735216023353,0.90539564,95959.0,95958.0,0.004171]
[1735216023523,0.80140932,95959.0,95958.0,0.004171]
[1735216023931,0.89428615,95959.0,95958.0,0.004171]
[1735216024876,0.60428515,95959.0,95958.0,0.004171]
[1735216025311,1.02915115,95959.0,95958.0,0.000171]
[1735216026076,0.60428515,95959.0,95958.0,0.000171]
[1735216026443,0.80030815,95959.0,95958.0,0.000171]
[1735216026572,0.90629447,95959.0,95958.0,0.000171]
[1735216026775,0.86503815,95959.0,95958.0,0.000171]
[1735216027161,0.86303815,95959.0,95958.0,0.000171]
[1735216027362,0.86503815,95959.0,95958.0,0.000171]
[1735216029007,0.96503815,95959.0,95958.0,0.000171]
[1735216029209,0.96303815,95959.0,95958.0,0.000171]
[1735216029568,1.32091511,95959.0,95958.0,0.000171]
[1735216029788,1.32291511,95959.0,95958.0,0.000171]
[1735216030105,0.40560683,95955.0,95954.0,0.00051854]
[1735216030304,2.28709215,95955.0,95954.0,0.00051854]
[1735216030520,2.74107711,95955.0,95954.0,0.00051854]
[1735216030719,1.7973179,95955.0,95954.0,0.00051854]
[1735216030971,1.34618332,95955.0,95954.0,0.00051854]
[1735216031173,0.35508632,95955.0,95954.0,0.00051854]
[1735216031346,0.10598632,95955.0,95954.0,0.00051854]
[1735216031546,0.002,95955.0,95954.0,0.00051854]
[1735216032575,0.678837,95961.0,95954.0,0.00051854]
[1735216032779,0.004,95955.0,95954.0,0.00151854]
[1735216033206,0.004,95955.0,95954.0,0.00251854]
[1735216033403,0.15,95958.0,95954.0,0.00251854]
[1735216033731,0.001,95955.0,95954.0,0.00251854]
[1735216034138,0.001,95955.0,95954.0,0.00051854]
[1735216034383,0.15,95958.0,95954.0,0.00051854]
[1735216034582,0.15,95959.0,95954.0,0.00051854]
[1735216034760,0.10398632,95959.0,95954.0,0.00051854]
[1735216034977,0.15,95958.0,95954.0,0.00051854]
[1735216035788,0.358424,95958.0,95954.0,0.00051854]
[1735216035999,0.358424,95958.0,95954.0,0.00151854]
[1735216036205,0.359424,95958.0,95954.0,0.00151854]
[1735216036557,0.359424,95958.0,95954.0,0.00251854]
[1735216036771,0.15,95956.0,95954.0,0.00251854]
[1735216038194,0.208431,95955.0,95954.0,0.00251854]
[1735216038400,0.358431,95955.0,95954.0,0.00068974]
[1735216038603,0.358431,95955.0,95954.0,0.00268974]
[1735216039464,0.358431,95955.0,95954.0,0.00068974]
[1735216039864,0.52244118,95955.0,95954.0,0.00268974]
[1735216040483,0.46241732,95955.0,95954.0,0.00268974]
[1735216041252,0.252,95966.0,95954.0,0.13301291]
[1735216041451,0.252,95966.0,95955.0,0.00712317]
[1735216041650,8.56e-05,95968.0,95962.0,0.00712317]
[1735216041811,8.56e-05,95968.0,95964.0,0.208411]
[1735216042016,8.56e-05,95968.0,95964.0,0.193411]
[1735216042221,8.56e-05,95968.0,95964.0,0.401822]
[1735216042418,8.56e-05,95968.0,95964.0,0.44271652]
[1735216043497,8.56e-05,95968.0,95964.0,0.401822]
[1735216043686,8.56e-05,95968.0,95964.0,0.195411]
[1735216044096,8.56e-05,95968.0,95965.0,0.208409]
[1735216044453,8.56e-05,95968.0,95965.0,0.416818]
[1735216044651,8.56e-05,95968.0,95965.0,0.208409]
[1735216045241,8.56e-05,95968.0,95965.0,0.216409]
[1735216046131,8.56e-05,95968.0,95965.0,0.218409]
[1735216046715,8.56e-05,95968.0,95965.0,0.426818]
[1735216047087,0.00203222,95967.0,95965.0,0.218409]
[1735216048154,0.00203222,95967.0,95965.0,0.210409]
[1735216048571,0.00203222,95967.0,95965.0,0.219409]
[1735216049469,0.00203222,95967.0,95965.0,0.217409]
[1735216049889,0.00203222,95967.0,95965.0,0.220409]
[1735216050951,0.00203222,95967.0,95966.0,0.00712317]
[1735216051878,0.00211782,95967.0,95966.0,0.00712317]
[1735216052112,0.00211782,95967.0,95966.0,0.01612317]
[1735216052582,0.00211782,95967.0,95966.0,0.02512317]
[1735216053136,0.00211782,95967.0,95966.0,0.02912317]
[1735216053733,0.00211782,95967.0,95966.0,0.02512317]
[1735216053936,0.00211782,95967.0,95966.0,0.02912317]
[1735216054406,0.16428892,95982.0,95974.0,0.208389]
[1735216055203,0.16428892,95982.0,95975.0,0.0787]
[1735216056896,0.16428892,95982.0,95975.0,0.0797]
[1735216057720,0.16428892,95982.0,95975.0,0.0847]
[1735216059607,0.16428892,95982.0,95975.0,0.006]
[1735216059841,0.10398632,95981.0,95975.0,0.006]
[1735216060561,0.10398632,95981.0,95964.0,0.287111]
[1735216060762,0.31236032,95981.0,95975.0,0.002]
[1735216061486,0.31236032,95981.0,95975.0,0.005]
[1735216064650,0.31236032,95981.0,95968.0,0.2084]
[1735216065121,0.31236032,95981.0,95975.0,0.003]
[1735216065830,0.31236032,95981.0,95975.0,0.006]
[1735216066263,0.10398632,95981.0,95975.0,0.006]
[1735216067281,0.10398632,95981.0,95968.0,0.2084]
[1735216067528,0.10398632,95981.0,95975.0,0.003]
[1735216068387,0.10398632,95981.0,95968.0,0.2084]
[1735216069086,0.10398632,95981.0,95968.0,0.2114]
[1735216075844,0.10398632,95981.0,95968.0,0.2115712]
[1735216077234,0.10398632,95981.0,95968.0,0.2085712]
[1735216077755,0.10398632,95981.0,95968.0,0.2115712]
[1735216079861,0.10398632,95981.0,95968.0,0.2085712]
[1735216080075,0.10398632,95981.0,95968.0,0.2115712]
[1735216080499,0.10398632,95981.0,95968.0,0.2085712]
[1735216080727,0.10398632,95981.0,95968.0,0.2115712]
[1735216080950,0.10398632,95981.0,95968.0,0.4199732]
[1735216081382,0.16437452,95982.0,95974.0,0.208389]
[1735216082608,0.16437452,95982.0,95969.0,0.2886]
[1735216083586,0.16437452,95982.0,95969.0,0.0802]
[1735216083587,0.208378,95979.0,95969.0,0.0802]
[1735216083831,0.2084,95969.0,95968.0,0.0001712]
[1735216084072,0.31238632,95969.0,95968.0,0.0001712]
[1735216084552,0.46238632,95969.0,95968.0,0.0001712]
[1735216085392,0.15,95969.0,95968.0,0.0001712]
[1735216085650,0.15,95971.0,95968.0,0.0001712]
[1735216085852,0.15,95971.0,95968.0,0.0021712]
[1735216086058,0.14989182,95974.0,95968.0,0.0021712]
[1735216086262,0.10398632,95973.0,95968.0,0.0091712]
[1735216086464,0.10398632,95973.0,95968.0,0.0021712]
[1735216086826,0.10398632,95973.0,95968.0,0.0041712]
[1735216087035,0.10398632,95973.0,95968.0,0.0021712]
[1735216087444,0.10398632,95973.0,95968.0,0.0051712]
[1735216087608,0.10398632,95973.0,95968.0,0.0001712]
[1735216088041,0.05715554,95972.0,95968.0,0.0031712]
[1735216088249,0.62077832,95971.0,95968.0,0.0031712]
[1735216089268,0.3584,95969.0,95968.0,0.0001712]
[1735216089504,0.57224032,95969.0,95968.0,0.0001712]
[1735216089810,0.57224032,95969.0,95968.0,0.0031712]
[1735216090024,0.46238632,95969.0,95968.0,0.0001712]
[1735216090233,0.46238632,95969.0,95968.0,0.0011712]
[1735216090857,0.46238632,95969.0,95968.0,0.0031712]
[1735216091261,0.46238632,95969.0,95968.0,0.00311713]
[1735216091464,0.46338632,95969.0,95968.0,0.00311713]
[1735216092428,0.52611632,95969.0,95968.0,0.00311713]
[1735216093251,0.63010264,95969.0,95968.0,0.00311713]
[1735216094309,0.78537764,95969.0,95968.0,0.00311713]
[1735216094564,0.87825447,95969.0,95968.0,0.00311713]
[1735216094806,0.83791847,95969.0,95968.0,0.00311713]
[1735216095054,0.83691847,95969.0,95968.0,0.00311713]
[1735216095513,0.83791847,95969.0,95968.0,0.00311713]
[1735216095753,0.83791847,95969.0,95968.0,0.00011713]
[1735216096161,0.88731847,95969.0,95968.0,0.00211713]
[1735216096563,0.88631847,95969.0,95968.0,0.00211713]
[1735216097406,0.88731847,95969.0,95968.0,0.00211713]
[1735216098480,0.77137947,95969.0,95968.0,0.00211713]
[1735216098780,0.89489147,95969.0,95968.0,0.00211713]
[1735216099256,0.66839315,95969.0,95968.0,0.00011713]
[1735216099687,0.66839315,95969.0,95968.0,0.00211713]
[1735216099925,0.66739315,95969.0,95968.0,0.00211713]
[1735216100137,0.46238632,95969.0,95968.0,0.00211713]
[1735216100345,0.46338632,95969.0,95968.0,0.00411713]
[1735216100995,0.46238632,95969.0,95968.0,0.00411713]
[1735216101168,0.46338632,95969.0,95968.0,0.00011713]
[1735216101466,0.47750406,95969.0,95968.0,0.00011713]
[1735216101686,0.47650406,95969.0,95968.0,0.00011713]
[1735216102065,0.46238632,95969.0,95968.0,0.00011713]
[1735216103111,0.46338632,95969.0,95968.0,0.00011713]
[1735216103497,0.55526315,95969.0,95968.0,0.00011713]
[1735216103702,0.71402315,95969.0,95968.0,0.00011713]
[1735216103903,0.71502315,95969.0,95968.0,0.00011713]
[1735216104106,0.84438568,95969.0,95968.0,0.00211713]
[1735216104311,0.81800947,95969.0,95968.0,0.00211713]
[1735216104490,0.65924947,95969.0,95968.0,0.00211713]
[1735216104707,0.85117247,95969.0,95968.0,0.00211713]
[1735216105460,0.82430147,95969.0,95968.0,0.00011713]
[1735216105682,0.79151347,95969.0,95968.0,0.00011713]
[1735216105888,0.79151347,95969.0,95968.0,0.00211713]
[1735216106090,0.79051347,95969.0,95968.0,0.00211713]
[1735216106521,0.79151347,95969.0,95968.0,0.00411713]
[1735216106940,0.85324347,95969.0,95968.0,0.00411713]
[1735216107168,0.85424347,95969.0,95968.0,0.00011713]
[1735216107594,0.85324347,95969.0,95968.0,0.00011713]
[1735216108064,0.74025715,95969.0,95968.0,0.00011713]
[1735216109209,0.60799315,95969.0,95968.0,0.00011713]
[1735216109400,0.83427115,95969.0,95968.0,0.00011713]
[1735216109684,0.83427115,95969.0,95968.0,0.00211713]
[1735216110116,0.83335675,95969.0,95968.0,0.00011713]
[1735216110320,0.72907975,95969.0,95968.0,0.00011713]
[1735216110527,0.73007975,95969.0,95968.0,0.00011713]
[1735216110941,0.72907975,95969.0,95968.0,0.00011713]
[1735216111909,0.83306607,95969.0,95968.0,0.00011713]
[1735216112110,0.83606607,95969.0,95968.0,0.00011713]
[1735216112745,0.83306607,95969.0,95968.0,0.00011713]
[1735216113182,0.83406607,95969.0,95968.0,0.00011713]
[1735216113595,0.83306607,95969.0,95968.0,0.00011713]
[1735216113813,0.83606607,95969.0,95968.0,0.00011713]
[1735216114889,1.08806607,95969.0,95968.0,0.00011713]
[1735216115104,1.08506607,95969.0,95968.0,0.00011713]
[1735216115567,1.08606607,95969.0,95968.0,0.00011713]
[1735216115921,1.08506607,95969.0,95968.0,0.00011713]
[1735216116128,1.08806607,95969.0,95968.0,0.00011713]
[1735216116508,0.98107975,95969.0,95968.0,0.00011713]
[1735216116910,0.86107875,95969.0,95968.0,0.00011713]
[1735216118139,0.86007875,95969.0,95968.0,0.00011713]
[1735216118886,0.86307875,95969.0,95968.0,0.00011713]
[1735216119514,0.86007875,95969.0,95968.0,0.00011713]
[1735216119730,0.86107875,95969.0,95968.0,0.00011713]
[1735216121134,0.86007875,95969.0,95968.0,0.00011713]
[1735216121350,0.86307875,95969.0,95968.0,0.00011713]
[1735216121954,0.86007875,95969.0,95968.0,0.00011713]
[1735216122204,0.86107875,95969.0,95968.0,0.00011713]
[1735216122750,0.87401782,95969.0,95968.0,0.00011713]
[1735216122926,1.52341582,95969.0,95968.0,0.00011713]
[1735216123126,1.47578882,95969.0,95968.0,0.00011713]
[1735216123328,1.41774975,95969.0,95968.0,0.00011713]
[1735216124023,1.44074975,95969.0,95968.0,0.00011713]
[1735216124313,1.40432875,95969.0,95968.0,0.00011713]
[1735216124507,1.40532875,95969.0,95968.0,0.00011713]
[1735216124717,1.50931507,95969.0,95968.0,0.00011713]
[1735216124954,1.50831507,95969.0,95968.0,0.00011713]
[1735216125359,1.51131507,95969.0,95968.0,0.00011713]
[1735216125569,1.61131507,95969.0,95968.0,0.00011713]
[1735216125816,1.74450278,95969.0,95968.0,0.00011713]
[1735216127114,1.74150278,95969.0,95968.0,0.00011713]
[1735216127484,1.74450278,95969.0,95968.0,0.00011713]
[1735216128518,1.83788764,95969.0,95968.0,0.00011713]
[1735216128668,1.74450278,95969.0,95968.0,0.00011713]
[1735216129144,1.71912657,95969.0,95968.0,0.00011713]
[1735216131282,1.41063907,95969.0,95968.0,0.00011713]
[1735216131487,1.19945007,95969.0,95968.0,0.00011713]
[1735216134099,1.24370575,95969.0,95968.0,0.00011713]
[1735216134640,1.14370575,95969.0,95968.0,0.00011713]
[1735216134865,1.24070575,95969.0,95968.0,0.00011713]
[1735216135075,1.24370575,95969.0,95968.0,0.00011713]
[1735216137389,1.23256375,95969.0,95968.0,0.00011713]
[1735216137797,1.22956375,95969.0,95968.0,0.00011713]
[1735216138196,1.23256375,95969.0,95968.0,0.00011713]
[1735216138572,1.13256375,95969.0,95968.0,0.00011713]
[1735216138793,1.23256375,95969.0,95968.0,0.00011713]
[1735216140055,1.22956375,95969.0,95968.0,0.00011713]
[1735216140185,1.17883575,95969.0,95968.0,0.00011713]
[1735216140542,1.28582207,95969.0,95968.0,0.00011713]
[1735216140770,1.31163357,95969.0,95968.0,0.00011713]
[1735216140978,1.30863357,95969.0,95968.0,0.00011713]
[1735216141130,1.31163357,95969.0,95968.0,0.00011713]
[1735216142511,1.30863357,95969.0,95968.0,0.00011713]
[1735216142938,1.31063357,95969.0,95968.0,0.00011713]
[1735216144311,1.33600978,95969.0,95968.0,0.00011713]
[1735216145029,1.41600978,95969.0,95968.0,0.00011713]
[1735216145932,1.41400978,95969.0,95968.0,0.00011713]
[1735216146150,0.19287683,95965.0,95964.0,3.3e-07]
[1735216146402,0.73466718,95965.0,95964.0,3.3e-07]
[1735216147508,0.73966718,95965.0,95964.0,3.3e-07]
[1735216147743,1.32366718,95965.0,95964.0,3.3e-07]
[1735216148427,1.32666718,95965.0,95964.0,0.00100033]
[1735216149045,0.45560683,95955.0,95954.0,0.00068974]
[1735216149243,3.38572177,95955.0,95954.0,0.00068974]
[1735216149448,3.39490877,95955.0,95954.0,0.00068974]
[1735216149737,3.23779077,95955.0,95954.0,0.00068974]
[1735216150215,2.56952477,95955.0,95954.0,0.00068974]
[1735216150453,2.51267377,95955.0,95954.0,0.00068974]
[1735216150670,2.37546809,95955.0,95954.0,0.00068974]
[1735216150819,2.35344655,95955.0,95954.0,0.00068974]
[1735216151861,2.34419155,95955.0,95954.0,0.00068974]
[1735216152378,2.36956776,95955.0,95954.0,0.00068974]
[1735216152588,2.47355408,95955.0,95954.0,0.00068974]
[1735216153742,2.32355408,95955.0,95954.0,0.00068974]
[1735216154111,2.47355408,95955.0,95954.0,0.00068974]
[1735216154864,2.70812511,95955.0,95954.0,0.00068974]
[1735216155644,2.47355408,95955.0,95954.0,0.00068974]
[1735216157078,2.29714008,95955.0,95954.0,0.00068974]
[1735216157287,2.19413408,95955.0,95954.0,0.00068974]
[1735216157799,1.83047108,95955.0,95954.0,0.00068974]
[1735216158059,2.3937403,95955.0,95954.0,0.00068974]
[1735216158890,2.25317208,95955.0,95954.0,0.00068974]
[1735216160137,2.3937403,95955.0,95954.0,0.00068974]
[1735216161120,2.25317208,95955.0,95954.0,0.00068974]
[1735216162267,2.34685609,95955.0,95954.0,0.00068974]
[1735216163204,2.25317208,95955.0,95954.0,0.00068974]
[1735216163522,1.92618576,95955.0,95954.0,0.00068974]
[1735216163738,0.81710676,95955.0,95954.0,0.00068974]
[1735216163984,0.81710676,95955.0,95954.0,0.07718974]
[1735216164640,0.81410676,95955.0,95954.0,0.07718974]
[1735216164986,0.96410676,95955.0,95954.0,0.07718974]
[1735216165206,0.96210676,95955.0,95954.0,0.07718974]
[1735216165414,0.96210676,95955.0,95954.0,0.07818974]
[1735216165601,0.96310676,95955.0,95954.0,0.07818974]
[1735216165804,0.96310676,95955.0,95954.0,0.07718974]
[1735216166015,0.96210676,95955.0,95954.0,0.07818974]
[1735216166236,0.96310676,95955.0,95954.0,0.07818974]
[1735216167878,1.06709308,95955.0,95954.0,0.07718974]
[1735216168113,0.96210676,95955.0,95954.0,0.07818974]
[1735216168949,0.96210676,95955.0,95954.0,0.07718974]
[1735216169184,0.96210676,95955.0,95954.0,0.07818974]
[1735216169387,0.96310676,95955.0,95954.0,0.07818974]
[1735216169585,1.06310676,95955.0,95954.0,0.07818974]
[1735216169786,1.16609308,95955.0,95954.0,0.07818974]
[1735216169991,1.34432108,95955.0,95954.0,0.07818974]
[1735216170184,1.31995908,95955.0,95954.0,0.07818974]
[1735216170476,1.31995908,95955.0,95954.0,0.07718974]
[1735216170729,1.27862508,95955.0,95954.0,0.07718974]
[1735216171606,1.27862508,95955.0,95954.0,0.00068974]
[1735216171986,1.37050191,95955.0,95954.0,0.00068974]
[1735216172188,1.43323191,95955.0,95954.0,0.00068974]
[1735216172392,1.43423191,95955.0,95954.0,0.00068974]
[1735216172600,0.96310676,95955.0,95954.0,0.12538974]
[1735216172783,0.96210676,95955.0,95954.0,0.12538974]
[1735216173005,1.06200676,95955.0,95954.0,0.12538974]
[1735216173215,1.06300676,95955.0,95954.0,0.12538974]
[1735216173645,1.06200676,95955.0,95954.0,0.12538974]
[1735216173845,1.01509308,95955.0,95954.0,0.07718974]
[1735216174048,0.91310676,95955.0,95954.0,0.07718974]
[1735216175099,0.91110676,95955.0,95954.0,0.07718974]
[1735216175309,0.91410676,95955.0,95954.0,0.07718974]
[1735216176140,0.91510676,95955.0,95954.0,0.07718974]
[1735216176561,0.91410676,95955.0,95954.0,0.07718974]
[1735216176759,1.06882392,95955.0,95954.0,0.07718974]
[1735216176994,1.07182392,95955.0,95954.0,0.07718974]
[1735216177205,0.97883676,95955.0,95954.0,0.07718974]
[1735216178234,0.97683676,95955.0,95954.0,0.07718974]
[1735216178414,0.97483676,95955.0,95954.0,0.07718974]
[1735216178771,0.97683676,95955.0,95954.0,0.07718974]
[1735216178983,0.97583676,95955.0,95954.0,0.07718974]
[1735216179197,0.97783676,95955.0,95954.0,0.07718974]
[1735216179603,1.07136418,95955.0,95954.0,0.07718974]
[1735216179814,1.06936418,95955.0,95954.0,0.07718974]
[1735216180008,1.06836418,95955.0,95954.0,0.07718974]
[1735216180489,1.07036418,95955.0,95954.0,0.07718974]
[1735216180670,1.06836418,95955.0,95954.0,0.07718974]
[1735216180801,1.07036418,95955.0,95954.0,0.07718974]
[1735216181000,0.97683676,95955.0,95954.0,0.07718974]
[1735216181233,0.97583676,95955.0,95954.0,0.07718974]
[1735216181471,0.97783676,95955.0,95954.0,0.07718974]
[1735216181974,0.97583676,95955.0,95954.0,0.07718974]
[1735216182287,0.97683676,95955.0,95954.0,0.07718974]
[1735216182816,0.97583676,95955.0,95954.0,0.07718974]
[1735216183041,0.97383676,95955.0,95954.0,0.07718974]
[1735216183210,0.97583676,95955.0,95954.0,0.07718974]
[1735216183421,0.97783676,95955.0,95954.0,0.07718974]
[1735216183830,1.15168018,95955.0,95954.0,0.00068974]
[1735216184001,1.53381789,95955.0,95954.0,0.00068974]
[1735216184782,1.72241789,95955.0,95954.0,7.4e-07]
[1735216184994,1.38146789,95955.0,95954.0,7.4e-07]
[1735216185214,1.38246789,95955.0,95954.0,7.4e-07]
[1735216185863,1.19452509,95955.0,95954.0,7.4e-07]
[1735216186076,1.09652509,95955.0,95954.0,7.4e-07]
[1735216186282,1.19452509,95955.0,95954.0,7.4e-07]
[1735216186698,1.19371359,95955.0,95954.0,7.4e-07]
[1735216187117,1.28746977,95955.0,95954.0,7.4e-07]
[1735216187444,1.39145609,95955.0,95954.0,7.4e-07]
[1735216187654,1.38945609,95955.0,95954.0,7.4e-07]
[1735216187864,1.38745609,95955.0,95954.0,7.4e-07]
[1735216188095,1.34641009,95955.0,95954.0,7.4e-07]
[1735216188288,1.34841009,95955.0,95954.0,7.4e-07]
[1735216188700,1.39421009,95955.0,95954.0,7.4e-07]
[1735216189498,1.39021009,95955.0,95954.0,7.4e-07]
[1735216189799,1.39221009,95955.0,95954.0,7.4e-07]
[1735216190011,1.34641009,95955.0,95954.0,7.4e-07]
[1735216190143,1.53392246,95955.0,95954.0,7.4e-07]
[1735216191310,1.16143473,95955.0,95954.0,7.4e-07]
[1735216191516,1.17043473,95955.0,95954.0,0.00100074]
[1735216192084,1.16543473,95955.0,95954.0,0.00100074]
[1735216192288,1.12157498,95955.0,95954.0,0.00100074]
[1735216192501,1.31445181,95955.0,95954.0,0.00100074]
[1735216192734,1.31443813,95955.0,95954.0,7.4e-07]
[1735216192888,1.41843813,95955.0,95954.0,7.4e-07]
[1735216193181,1.31843813,95955.0,95954.0,7.4e-07]
[1735216193348,1.17378551,95955.0,95954.0,7.4e-07]
[1735216193581,1.17778551,95955.0,95954.0,7.4e-07]
[1735216193757,1.17478551,95955.0,95954.0,7.4e-07]
[1735216193930,1.17778551,95955.0,95954.0,7.4e-07]
[1735216194357,1.17078551,95955.0,95954.0,7.4e-07]
[1735216194609,1.17478551,95955.0,95954.0,7.4e-07]
[1735216194813,1.17778551,95955.0,95954.0,7.4e-07]
[1735216195302,1.17478551,95955.0,95954.0,7.4e-07]
[1735216195512,1.17778551,95955.0,95954.0,7.4e-07]
[1735216195901,1.17378551,95955.0,95954.0,7.4e-07]
[1735216196098,1.17778551,95955.0,95954.0,7.4e-07]
[1735216196711,1.27778551,95955.0,95954.0,7.4e-07]
[1735216197729,1.27478551,95955.0,95954.0,7.4e-07]
[1735216198038,1.42659701,95955.0,95954.0,7.4e-07]
[1735216199044,1.5133601,95955.0,95954.0,7.4e-07]
[1735216199240,1.5173601,95955.0,95954.0,7.4e-07]
[1735216199556,1.5203601,95955.0,95954.0,7.4e-07]
[1735216199745,1.32037378,95955.0,95954.0,7.4e-07]
[1735216199959,1.29456228,95955.0,95954.0,7.4e-07]
[1735216200153,1.20079919,95955.0,95954.0,7.4e-07]
[1735216200290,1.17779919,95955.0,95954.0,7.4e-07]
[1735216200719,1.17479919,95955.0,95954.0,7.4e-07]
[1735216200921,1.28178551,95955.0,95954.0,7.4e-07]
[1735216201326,1.27878551,95955.0,95954.0,7.4e-07]
[1735216201533,1.37878551,95955.0,95954.0,7.4e-07]
[1735216201745,1.45549569,95955.0,95954.0,7.4e-07]
[1735216201965,1.42259701,95955.0,95954.0,7.4e-07]
[1735216202177,1.42659701,95955.0,95954.0,7.4e-07]
[1735216202495,1.41959701,95955.0,95954.0,7.4e-07]